[Event "94th FRA-ch Open A 2019"]
[Site "Chartres"]
[Date "2019.08.18"]
[Round "2.6"]
[White "Derige Kane, Yan"]
[Black "Fournier, Dimitri"]
[Result "1/2-1/2"]
[ECO "A47"]
[WhiteElo "2156"]
[BlackElo "2034"]
[Annotator "NA"]
[PlyCount "59"]
[EventDate "2019.08.17"]
[EventType "swiss"]
[EventCountry "FRA"]
[SourceTitle "playchess.com"]
[Source "ChessBase"]
[SourceQuality "1"]
[TimeControl "40/5400+30:1800+30"]

1. d4 {[%emt 0:00:00]} Nf6 {[%emt 0:00:00]} 2. Bg5 {[%emt 0:00:00]} e6 {[%emt 0:00:00]} 3. Nd2 {[%emt 0:00:00]} c5 {[%emt 0:00:11]} 4. e3 {[%emt 0:00:26]} cxd4 {[%emt 0:02:34]} 5. exd4 {[%emt 0:01:42]} Be7 {[%emt 0:00:13]} 6. Ngf3 {[%emt 0:02:00]} b6 {[%emt 0:00:12]} 7. Bd3 {[%emt 0:00:05]} Bb7 {[%emt 0:00:18]} 8. O-O {[%emt 0:05:10]} O-O {[%emt 0:00:34]} 9. Re1 {[%emt 0:02:55]} d6 {[%emt 0:01:37]} 10. Qe2 {[%emt 0:04:40]} Nbd7 {[%emt 0:03:36]} 11. c4 {[%emt 0:06:35]} d5 {[%emt 0:20:30]} 12. Ne5 {[%emt 0:07:39]} Re8 {[%emt 0:02:42]} 13. Ndf3 {[%emt 0:16:48]} Nf8 {[%emt 0:08:11]} 14. cxd5 {[%emt 0:04:56]} Nxd5 {[%emt 0:18:24]} 15. Bd2 {[%emt 0:11:30]} Bb4 {[%emt 0:14:47]} 16. Bb5 {[%emt 0:07:53]} Re7 {[%emt 0:00:55]} 17. Bc6 {[%emt 0:04:09]} Bxd2 {[%emt 0:00:31]} 18. Qxd2 {[%emt 0:01:17]} f6 {[%emt 0:03:20]} 19. Bxb7 {[%emt 0:02:58]} Rxb7 {[%emt 0:00:06]} 20. Nd3 {[%emt 0:00:19]} Rc8 {[%emt 0:02:33]} 21. a4 {[%emt 0:03:16]} Qd6 {[%emt 0:00:39]} 22. a5 {[%emt 0:01:05]} Rbc7 {[%emt 0:00:29]} 23. axb6 {[%emt 0:01:35]} axb6 {[%emt 0:03:03]} 24. Rec1 {[%emt 0:00:06]} Rxc1+ {[%emt 0:01:45]} 25. Rxc1 {[%emt 0:00:05]} Rxc1+ {[%emt 0:00:11]} 26. Qxc1 {[%emt 0:00:12]} Qc7 {[%emt 0:00:15]} 27. Qxc7 {[%emt 0:02:36]} Nxc7 {[%emt 0:00:05]} 28. Nb4 {[%emt 0:00:15]} Nd5 {[%emt 0:05:17]} 29. Nxd5 {[%emt 0:00:23]} exd5 {[%emt 0:00:05]} 30. Kf1 {[%emt 0:01:18]} 1/2-1/2

[Event "94th FRA-ch Open A 2019"]
[Site "Chartres"]
[Date "2019.08.19"]
[Round "3.1"]
[White "Meunier-Pion, Jean"]
[Black "L'Huillier, Thibaud"]
[Result "1-0"]
[ECO "B12"]
[WhiteElo "2193"]
[BlackElo "2093"]
[Annotator "NA"]
[PlyCount "105"]
[EventDate "2019.08.17"]
[EventType "swiss"]
[EventCountry "FRA"]
[SourceTitle "playchess.com"]
[Source "ChessBase"]
[SourceQuality "1"]
[TimeControl "40/5400+30:1800+30"]

1. e4 {[%emt 0:00:00]} c6 {[%emt 0:00:00]} 2. d4 {[%emt 0:00:00]} d5 {[%emt 0:00:00]} 3. e5 {[%emt 0:00:00]} Bf5 {[%emt 0:00:00]} 4. Nf3 {[%emt 0:00:00]} e6 {[%emt 0:00:28]} 5. Be2 {[%emt 0:00:00]} c5 {[%emt 0:00:50]} 6. c4 {[%emt 0:05:52]} dxc4 {[%emt 0:06:33]} 7. Bxc4 {[%emt 0:00:33]} Nc6 {[%emt 0:12:19]} 8. Be3 {[%emt 0:06:52]} cxd4 {[%emt 0:03:46]} 9. Nxd4 {[%emt 0:05:20]} Bxb1 {[%emt 0:12:56]} 10. Nxc6 {[%emt 0:02:12]} bxc6 {[%emt 0:09:35]} 11. Qxd8+ {[%emt 0:00:09]} Rxd8 {[%emt 0:00:06]} 12. Rxb1 {[%emt 0:00:04]} Bb4+ {[%emt 0:00:06]} 13. Ke2 {[%emt 0:00:03]} Ne7 {[%emt 0:01:49]} 14. Rhd1 {[%emt 0:02:22]} Ng6 {[%emt 0:05:18]} 15. f4 {[%emt 0:05:45]} Ba5 {[%emt 0:06:56]} 16. Bd3 {[%emt 0:43:09]} Bb6 {[%emt 0:06:38]} 17. Be4 {[%emt 0:01:57]} Ne7 {[%emt 0:00:45]} 18. Rdc1 {[%emt 0:01:23]} Kd7 {[%emt 0:02:33]} 19. Rc4 {[%emt 0:13:00]} Nd5 {[%emt 0:10:46]} 20. Bd2 {[%emt 0:00:02]} g6 {[%emt 0:01:27]} 21. b4 {[%emt 0:00:26]} Rc8 {[%emt 0:01:41]} 22. Rbc1 {[%emt 0:00:22]} Rc7 {[%emt 0:01:17]} 23. a4 {[%emt 0:00:15]} a6 {[%emt 0:04:26]} 24. Bd3 {[%emt 0:01:45]} Rb8 {[%emt 0:03:22]} 25. a5 {[%emt 0:03:47]} Ba7 {[%emt 0:00:01]} 26. Re4 {[%emt 0:00:11]} c5 {[%emt 0:06:47]} 27. bxc5 {[%emt 0:00:07]} Rxc5 {[%emt 0:00:39]} 28. Rxc5 {[%emt 0:00:20]} Bxc5 {[%emt 0:00:01]} 29. Bxa6 {[%emt 0:00:23]} Rb2 {[%emt 0:00:55]} 30. Kd1 {[%emt 0:05:53]} Kc6 {[%emt 0:01:48]} 31. Bd3 {[%emt 0:02:13]} Bb4 {[%emt 0:01:02]} 32. Bxb4 {[%emt 0:00:57]} Rxb4 {[%emt 0:00:24]} 33. Kd2 {[%emt 0:00:28]} Rb2+ {[%emt 0:00:11]} 34. Bc2 {[%emt 0:00:32]} Kb5 {[%emt 0:00:01]} 35. Kc1 {[%emt 0:00:11]} Rb4 {[%emt 0:00:12]} 36. Rxb4+ {[%emt 0:00:44]} Nxb4 {[%emt 0:00:07]} 37. Be4 {[%emt 0:00:22]} Kxa5 {[%emt 0:00:12]} 38. Kd2 {[%emt 0:00:22]} Kb5 {[%emt 0:00:06]} 39. Ke3 {[%emt 0:00:37]} Kc5 {[%emt 0:00:01]} 40. g4 {[%emt 0:00:42]} Kc4 {[%emt 0:02:14]} 41. h4 {[%emt 0:06:14]} Kc3 {[%emt 0:03:44]} 42. h5 {[%emt 0:03:53]} Nd5+ {[%emt 0:08:52]} 43. Bxd5 {[%emt 0:08:22]} exd5 {[%emt 0:00:02]} 44. f5 {[%emt 0:03:05]} d4+ {[%emt 0:00:39]} 45. Kf4 {[%emt 0:00:54]} d3 {[%emt 0:00:19]} 46. hxg6 {[%emt 0:01:55]} hxg6 {[%emt 0:03:56]} 47. e6 {[%emt 0:00:08]} fxe6 {[%emt 0:01:39]} 48. fxe6 {[%emt 0:00:09]} d2 {[%emt 0:00:55]} 49. e7 {[%emt 0:00:02]} d1=Q {[%emt 0:06:27]} 50. e8=Q {[%emt 0:00:05]} Qd3 {[%emt 0:02:37]} 51. Qe1+ {[%emt 0:03:49]} Kc2 {[%emt 0:00:46]} 52. Qe4 {[%emt 0:01:19]} g5+ {[%emt 0:00:33]} 53. Kf5 {[%emt 0:00:09]} 1-0

[Event "94th FRA-ch Open A 2019"]
[Site "Chartres"]
[Date "2019.08.19"]
[Round "3.2"]
[White "Mahieu, Luc"]
[Black "Aumont, Alexandre"]
[Result "1-0"]
[ECO "B76"]
[WhiteElo "2084"]
[BlackElo "2190"]
[Annotator "NA"]
[PlyCount "119"]
[EventDate "2019.08.17"]
[EventType "swiss"]
[EventCountry "FRA"]
[SourceTitle "playchess.com"]
[Source "ChessBase"]
[SourceQuality "1"]
[TimeControl "40/5400+30:1800+30"]

1. e4 {[%emt 0:00:00]} c5 {[%emt 0:00:00]} 2. Nf3 {[%emt 0:00:02]} d6 {[%emt 0:00:00]} 3. d4 {[%emt 0:00:09]} cxd4 {[%emt 0:00:00]} 4. Nxd4 {[%emt 0:00:10]} Nf6 {[%emt 0:00:00]} 5. Nc3 {[%emt 0:00:07]} g6 {[%emt 0:00:00]} 6. Be3 {[%emt 0:00:16]} Bg7 {[%emt 0:00:00]} 7. f3 {[%emt 0:00:09]} O-O {[%emt 0:00:03]} 8. Qd2 {[%emt 0:00:10]} Nc6 {[%emt 0:00:04]} 9. O-O-O {[%emt 0:00:27]} d5 {[%emt 0:00:04]} 10. exd5 {[%emt 0:00:10]} Nxd5 {[%emt 0:00:04]} 11. Nxc6 {[%emt 0:00:22]} bxc6 {[%emt 0:00:06]} 12. Bd4 {[%emt 0:00:12]} Bxd4 {[%emt 0:00:07]} 13. Qxd4 {[%emt 0:00:11]} Qb6 {[%emt 0:00:08]} 14. Na4 {[%emt 0:05:08]} Qc7 {[%emt 0:00:06]} 15. Bc4 {[%emt 0:07:57]} Rd8 {[%emt 0:02:08]} 16. Bb3 {[%emt 0:01:30]} Bf5 {[%emt 0:05:05]} 17. g4 {[%emt 0:08:16]} Nf4 {[%emt 0:12:48]} 18. Qe3 {[%emt 0:05:16]} Be6 {[%emt 0:01:06]} 19. h4 {[%emt 0:06:30]} Bxb3 {[%emt 0:03:29]} 20. axb3 {[%emt 0:00:24]} Ne6 {[%emt 0:14:55]} 21. Qc3 {[%emt 0:07:15]} Rd5 {[%emt 0:19:28]} 22. Rxd5 {[%emt 0:06:11]} cxd5 {[%emt 0:00:02]} 23. Qxc7 {[%emt 0:00:14]} Nxc7 {[%emt 0:00:04]} 24. Kd2 {[%emt 0:00:22]} f6 {[%emt 0:06:41]} 25. Nc3 {[%emt 0:03:03]} Kf7 {[%emt 0:01:19]} 26. Ra1 {[%emt 0:00:57]} Ke6 {[%emt 0:00:29]} 27. Kd3 {[%emt 0:03:56]} h6 {[%emt 0:06:48]} 28. Ne2 {[%emt 0:00:48]} Kd6 {[%emt 0:01:36]} 29. c4 {[%emt 0:01:24]} e5 {[%emt 0:04:55]} 30. Nc3 {[%emt 0:02:30]} a6 {[%emt 0:12:23]} 31. Ra5 {[%emt 0:03:29]} dxc4+ {[%emt 0:06:38]} 32. bxc4 {[%emt 0:00:08]} f5 {[%emt 0:02:37]} 33. Nd5 {[%emt 0:03:44]} Nxd5 {[%emt 0:02:05]} 34. Rxd5+ {[%emt 0:00:08]} Ke6 {[%emt 0:00:07]} 35. b4 {[%emt 0:00:58]} Rb8 {[%emt 0:01:09]} 36. Kc3 {[%emt 0:00:22]} fxg4 {[%emt 0:00:13]} 37. fxg4 {[%emt 0:00:08]} h5 {[%emt 0:00:28]} 38. gxh5 {[%emt 0:00:57]} gxh5 {[%emt 0:00:01]} 39. Ra5 {[%emt 0:00:14]} Kf5 {[%emt 0:01:42]} 40. Rxa6 {[%emt 0:00:17]} e4 {[%emt 0:00:17]} 41. b5 {[%emt 0:31:41]} Rd8 {[%emt 0:04:59]} 42. b6 {[%emt 0:00:00]} e3 {[%emt 0:00:09]} 43. Ra2 {[%emt 0:00:00]} Ke4 {[%emt 0:00:31]} 44. Ra7 e2 {[%emt 0:00:30]} 45. Re7+ Kf3 {[%emt 0:00:30]} 46. c5 Rd1 {[%emt 0:00:30]} 47. b7 Rd7 {[%emt 0:00:30]} 48. Rxe2 Rxb7 {[%emt 0:00:30]} 49. Re5 Kg4 {[%emt 0:00:30]} 50. Re4+ Kf5 {[%emt 0:00:30]} 51. Rd4 Ke6 {[%emt 0:00:30]} 52. Kc4 Rb1 {[%emt 0:00:30]} 53. c6 Rc1+ {[%emt 0:00:30]} 54. Kb5 Ke5 {[%emt 0:00:30]} 55. Rd8 Kf5 {[%emt 0:00:30]} 56. Kb6 Rc4 {[%emt 0:00:30]} 57. Rd5+ Kg4 {[%emt 0:00:30]} 58. Rc5 Rb4+ {[%emt 0:00:30]} 59. Ka5 Rb8 {[%emt 0:00:30]} 60. Rc4+ 1-0

[Event "94th FRA-ch Open A 2019"]
[Site "Chartres"]
[Date "2019.08.19"]
[Round "3.3"]
[White "Rivalin, Kenny"]
[Black "Weibel, Theo"]
[Result "1/2-1/2"]
[ECO "B54"]
[WhiteElo "2184"]
[BlackElo "2081"]
[Annotator "NA"]
[PlyCount "69"]
[EventDate "2019.08.17"]
[EventType "swiss"]
[EventCountry "FRA"]
[SourceTitle "playchess.com"]
[Source "ChessBase"]
[SourceQuality "1"]
[TimeControl "40/5400+30:1800+30"]

1. e4 {[%emt 0:04:54]} c5 {[%emt 0:00:00]} 2. Nf3 {[%emt 0:00:07]} Nc6 {[%emt 0:00:00]} 3. Nc3 {[%emt 0:00:37]} d6 {[%emt 0:00:41]} 4. d4 {[%emt 0:00:18]} cxd4 {[%emt 0:00:17]} 5. Nxd4 {[%emt 0:00:05]} e5 {[%emt 0:00:34]} 6. Nb3 {[%emt 0:00:07]} Be7 {[%emt 0:00:51]} 7. Be3 {[%emt 0:02:15]} Be6 {[%emt 0:03:47]} 8. Qd2 {[%emt 0:02:50]} Nf6 {[%emt 0:04:14]} 9. f3 {[%emt 0:00:20]} d5 {[%emt 0:06:01]} 10. exd5 {[%emt 0:00:37]} Nxd5 {[%emt 0:00:17]} 11. Nxd5 {[%emt 0:00:06]} Qxd5 {[%emt 0:02:17]} 12. Qxd5 {[%emt 0:00:11]} Bxd5 {[%emt 0:00:07]} 13. O-O-O {[%emt 0:00:07]} O-O-O {[%emt 0:01:15]} 14. Bb5 {[%emt 0:11:26]} Kc7 {[%emt 0:11:26]} 15. Rhe1 {[%emt 0:16:02]} a6 {[%emt 0:08:38]} 16. Bf1 {[%emt 0:23:21]} f5 {[%emt 0:08:01]} 17. Nc5 {[%emt 0:07:34]} h6 {[%emt 0:15:25]} 18. Kb1 {[%emt 0:08:02]} Bh4 {[%emt 0:08:59]} 19. g3 {[%emt 0:01:14]} Bg5 {[%emt 0:00:07]} 20. f4 {[%emt 0:10:41]} exf4 {[%emt 0:00:41]} 21. Bxf4+ {[%emt 0:00:09]} Bxf4 {[%emt 0:00:12]} 22. gxf4 {[%emt 0:00:02]} g5 {[%emt 0:07:52]} 23. Bd3 {[%emt 0:00:34]} gxf4 {[%emt 0:00:49]} 24. Bxf5 {[%emt 0:00:10]} Bc4 {[%emt 0:06:35]} 25. Rxd8 {[%emt 0:01:41]} Rxd8 {[%emt 0:01:09]} 26. b3 {[%emt 0:00:05]} Bg8 {[%emt 0:05:28]} 27. Nd3 {[%emt 0:00:25]} Rf8 {[%emt 0:00:40]} 28. Be4 {[%emt 0:00:32]} Nd4 {[%emt 0:01:46]} 29. c3 {[%emt 0:02:00]} Nb5 {[%emt 0:01:24]} 30. Kc2 {[%emt 0:00:23]} Nd6 {[%emt 0:00:02]} 31. Bf3 {[%emt 0:00:50]} Rf5 {[%emt 0:03:06]} 32. Re7+ {[%emt 0:08:15]} Kd8 33. Rg7 {[%emt 0:00:30]} Rg5 34. Rxg5 hxg5 35. h4 1/2-1/2

[Event "94th FRA-ch Open A 2019"]
[Site "Chartres"]
[Date "2019.08.19"]
[Round "3.4"]
[White "Deveque, Guillaume"]
[Black "Burille, Matthieu"]
[Result "1/2-1/2"]
[ECO "A00"]
[WhiteElo "2016"]
[BlackElo "2174"]
[Annotator "NA"]
[PlyCount "70"]
[EventDate "2019.08.17"]
[EventType "swiss"]
[EventCountry "FRA"]
[SourceTitle "playchess.com"]
[Source "ChessBase"]
[SourceQuality "1"]
[TimeControl "40/5400+30:1800+30"]

1. b4 {[%emt 0:00:00]} d5 {[%emt 0:00:00]} 2. e3 {[%emt 0:00:00]} Nf6 {[%emt 0:00:00]} 3. Nf3 {[%emt 0:00:00]} Bf5 {[%emt 0:03:32]} 4. c4 {[%emt 0:00:00]} e6 {[%emt 0:00:35]} 5. a3 {[%emt 0:00:09]} Be7 {[%emt 0:03:04]} 6. Nc3 {[%emt 0:00:06]} O-O {[%emt 0:04:10]} 7. Be2 {[%emt 0:00:04]} h6 {[%emt 0:05:29]} 8. O-O {[%emt 0:01:39]} Nbd7 {[%emt 0:00:27]} 9. cxd5 {[%emt 0:02:21]} exd5 {[%emt 0:00:38]} 10. Qb3 {[%emt 0:03:09]} c6 {[%emt 0:00:36]} 11. Bb2 {[%emt 0:15:37]} a5 {[%emt 0:03:32]} 12. Na4 {[%emt 0:06:33]} Bd6 {[%emt 0:09:34]} 13. Bxf6 {[%emt 0:17:16]} Qxf6 {[%emt 0:19:07]} 14. d4 {[%emt 0:00:29]} b5 {[%emt 0:00:44]} 15. Nc5 {[%emt 0:01:13]} axb4 {[%emt 0:05:29]} 16. axb4 {[%emt 0:01:44]} Rxa1 {[%emt 0:02:06]} 17. Rxa1 {[%emt 0:00:02]} Bxc5 {[%emt 0:00:09]} 18. bxc5 {[%emt 0:00:12]} Nxc5 {[%emt 0:00:04]} 19. Qb4 {[%emt 0:09:03]} Nd7 {[%emt 0:04:15]} 20. Ra6 {[%emt 0:07:00]} Nb8 {[%emt 0:02:32]} 21. Ra7 {[%emt 0:00:02]} Bg4 {[%emt 0:00:13]} 22. h3 Bxf3 {[%emt 0:00:05]} 23. Bxf3 {[%emt 0:17:25]} Qd8 {[%emt 0:17:59]} 24. Qc5 {[%emt 0:06:01]} g6 {[%emt 0:02:09]} 25. e4 {[%emt 0:01:02]} dxe4 {[%emt 0:01:28]} 26. Bxe4 {[%emt 0:00:02]} Qf6 {[%emt 0:04:40]} 27. d5 {[%emt 0:07:22]} Qe5 {[%emt 0:00:36]} 28. Re7 {[%emt 0:00:12]} Qa1+ {[%emt 0:00:52]} 29. Kh2 {[%emt 0:00:03]} cxd5 {[%emt 0:00:56]} 30. Qxd5 {[%emt 0:01:17]} Qf6 {[%emt 0:00:36]} 31. Qe5 {[%emt 0:04:22]} Nd7 {[%emt 0:02:33]} 32. Qxf6 {[%emt 0:00:02]} Nxf6 {[%emt 0:00:04]} 33. Bc2 {[%emt 0:00:41]} Ne8 {[%emt 0:06:12]} 34. Rd7 {[%emt 0:01:13]} Kg7 {[%emt 0:01:31]} 35. Bd3 {[%emt 0:00:26]} Nf6 {[%emt 0:01:33]} 1/2-1/2

[Event "94th FRA-ch Open A 2019"]
[Site "Chartres"]
[Date "2019.08.19"]
[Round "3.5"]
[White "Bleuzen, Erwan"]
[Black "Da Silva, Quentin"]
[Result "1/2-1/2"]
[ECO "E92"]
[WhiteElo "2013"]
[BlackElo "2161"]
[Annotator "NA"]
[PlyCount "64"]
[EventDate "2019.08.17"]
[EventType "swiss"]
[EventCountry "FRA"]
[SourceTitle "playchess.com"]
[Source "ChessBase"]
[SourceQuality "1"]
[TimeControl "40/5400+30:1800+30"]

1. d4 {[%emt 0:00:00]} Nf6 {[%emt 0:00:00]} 2. c4 {[%emt 0:00:00]} g6 {[%emt 0:00:00]} 3. Nc3 {[%emt 0:00:00]} Bg7 {[%emt 0:00:07]} 4. e4 {[%emt 0:00:00]} d6 {[%emt 0:00:08]} 5. Nf3 {[%emt 0:00:01]} O-O {[%emt 0:00:10]} 6. Be2 {[%emt 0:00:03]} e5 {[%emt 0:00:10]} 7. dxe5 {[%emt 0:00:09]} dxe5 {[%emt 0:00:09]} 8. Qxd8 {[%emt 0:00:02]} Rxd8 {[%emt 0:00:08]} 9. Bg5 {[%emt 0:00:05]} Re8 {[%emt 0:01:43]} 10. Nd5 {[%emt 0:00:07]} Nxd5 {[%emt 0:00:37]} 11. cxd5 {[%emt 0:00:02]} c6 {[%emt 0:14:16]} 12. Bc4 {[%emt 0:00:10]} cxd5 {[%emt 0:03:20]} 13. Bxd5 {[%emt 0:00:09]} Nc6 {[%emt 0:06:55]} 14. a3 {[%emt 0:14:19]} Be6 {[%emt 0:06:36]} 15. Bxc6 {[%emt 0:00:43]} bxc6 {[%emt 0:00:07]} 16. Rc1 {[%emt 0:00:01]} Reb8 {[%emt 0:07:26]} 17. b4 {[%emt 0:00:35]} a5 {[%emt 0:01:54]} 18. Bd2 {[%emt 0:02:24]} axb4 {[%emt 0:04:11]} 19. Bxb4 {[%emt 0:07:13]} Bh6 {[%emt 0:06:23]} 20. Nd2 {[%emt 0:00:05]} Rb5 {[%emt 0:09:06]} 21. Ke2 {[%emt 0:04:16]} Rc8 {[%emt 0:16:37]} 22. Rc5 {[%emt 0:02:01]} Rxc5 {[%emt 0:04:50]} 23. Bxc5 {[%emt 0:00:02]} Rd8 {[%emt 0:02:49]} 24. Rd1 {[%emt 0:05:13]} f5 {[%emt 0:03:15]} 25. f3 {[%emt 0:15:56]} Bxd2 {[%emt 0:04:13]} 26. Rxd2 {[%emt 0:00:32]} Bc4+ {[%emt 0:00:20]} 27. Ke1 {[%emt 0:00:19]} Rxd2 {[%emt 0:00:28]} 28. Kxd2 {[%emt 0:00:04]} Kf7 {[%emt 0:00:13]} 29. g3 {[%emt 0:04:15]} Ke6 {[%emt 0:01:13]} 30. h4 {[%emt 0:04:54]} Bb5 {[%emt 0:01:19]} 31. Ke3 {[%emt 0:00:31]} Ba4 {[%emt 0:01:20]} 32. Bb4 {[%emt 0:01:14]} Bb3 {[%emt 0:05:57]} 1/2-1/2

[Event "94th FRA-ch Open A 2019"]
[Site "Chartres"]
[Date "2019.08.19"]
[Round "3.6"]
[White "Veron, Cyprien"]
[Black "Guignier, Nicolas"]
[Result "1/2-1/2"]
[ECO "A31"]
[WhiteElo "2012"]
[BlackElo "2151"]
[Annotator "NA"]
[PlyCount "84"]
[EventDate "2019.08.17"]
[EventType "swiss"]
[EventCountry "FRA"]
[SourceTitle "playchess.com"]
[Source "ChessBase"]
[SourceQuality "1"]
[TimeControl "40/5400+30:1800+30"]

1. Nf3 {[%emt 0:00:00]} Nf6 {[%emt 0:00:00]} 2. c4 {[%emt 0:00:00]} c5 {[%emt 0:00:00]} 3. d4 {[%emt 0:00:00]} cxd4 {[%emt 0:00:00]} 4. Nxd4 {[%emt 0:00:00]} e5 {[%emt 0:00:01]} 5. Nb5 {[%emt 0:00:00]} d5 {[%emt 0:00:09]} 6. cxd5 {[%emt 0:00:04]} Bc5 {[%emt 0:00:06]} 7. N5c3 {[%emt 0:00:30]} O-O {[%emt 0:00:15]} 8. g3 {[%emt 0:02:14]} Qb6 {[%emt 0:00:07]} 9. e3 {[%emt 0:00:39]} e4 {[%emt 0:00:12]} 10. Nd2 {[%emt 0:00:56]} Re8 {[%emt 0:32:28]} 11. Bg2 {[%emt 0:06:27]} Bg4 {[%emt 0:29:07]} 12. Qc2 {[%emt 0:14:55]} Na6 {[%emt 0:01:06]} 13. a3 {[%emt 0:02:37]} Rac8 {[%emt 0:00:51]} 14. O-O {[%emt 0:01:29]} Bf5 {[%emt 0:15:09]} 15. Qa4 {[%emt 0:17:53]} Bf8 {[%emt 0:02:02]} 16. h3 {[%emt 0:18:00]} Bg6 {[%emt 0:04:06]} 17. Kh2 {[%emt 0:09:59]} Nc5 {[%emt 0:01:22]} 18. Qd1 {[%emt 0:00:58]} h5 {[%emt 0:01:50]} 19. f4 {[%emt 0:01:38]} exf3 {[%emt 0:00:28]} 20. Bxf3 {[%emt 0:01:09]} Nd3 {[%emt 0:02:26]} 21. e4 {[%emt 0:04:42]} h4 {[%emt 0:00:38]} 22. gxh4 {[%emt 0:06:24]} Bd6+ {[%emt 0:01:26]} 23. Kg2 {[%emt 0:04:36]} Bb8 {[%emt 0:00:47]} 24. Bg4 {[%emt 0:02:05]} Qd6 {[%emt 0:01:04]} 25. Rf3 {[%emt 0:01:36]} Qh2+ {[%emt 0:04:35]} 26. Kf1 {[%emt 0:00:04]} Nxg4 {[%emt 0:02:01]} 27. hxg4 {[%emt 0:00:33]} Bg3 {[%emt 0:00:36]} 28. h5 {[%emt 0:02:10]} Rxc3 {[%emt 0:00:32]} 29. hxg6 {[%emt 0:01:01]} Nf4 {[%emt 0:00:32]} 30. gxf7+ {[%emt 0:01:09]} Kxf7 {[%emt 0:00:07]} 31. Rxf4+ {[%emt 0:00:10]} Bxf4 {[%emt 0:00:07]} 32. bxc3 {[%emt 0:00:09]} Qh1+ {[%emt 0:01:11]} 33. Ke2 {[%emt 0:00:06]} Qg2+ {[%emt 0:00:36]} 34. Kd3 {[%emt 0:00:52]} Bxd2 {[%emt 0:00:12]} 35. Qe2 {[%emt 0:00:14]} Qxe2+ {[%emt 0:00:39]} 36. Kxe2 {[%emt 0:00:07]} Bxc1 {[%emt 0:00:39]} 37. Rxc1 {[%emt 0:00:05]} Rxe4+ {[%emt 0:00:08]} 38. Kd3 {[%emt 0:02:35]} Rxg4 {[%emt 0:00:11]} 39. Re1 {[%emt 0:00:04]} b5 {[%emt 0:00:46]} 40. d6 {[%emt 0:00:26]} Rg6 {[%emt 0:00:41]} 41. Re7+ {[%emt 0:30:21]} Kf8 {[%emt 0:30:38]} 42. Rd7 {[%emt 0:00:00]} Kg8 {[%emt 0:01:09]} 1/2-1/2

[Event "94th FRA-ch Open A 2019"]
[Site "Chartres"]
[Date "2019.08.20"]
[Round "4.1"]
[White "Amoyal, Pierre"]
[Black "Meunier-Pion, Jean"]
[Result "1/2-1/2"]
[ECO "E91"]
[WhiteElo "2093"]
[BlackElo "2193"]
[Annotator "NA"]
[PlyCount "88"]
[EventDate "2019.08.17"]
[EventType "swiss"]
[EventCountry "FRA"]
[SourceTitle "playchess.com"]
[Source "ChessBase"]
[SourceQuality "1"]
[TimeControl "40/5400+30:1800+30"]

1. d4 {[%emt 0:02:35]} Nf6 {[%emt 0:00:00]} 2. c4 {[%emt 0:00:34]} g6 {[%emt 0:00:00]} 3. Nc3 {[%emt 0:00:26]} Bg7 {[%emt 0:00:00]} 4. e4 {[%emt 0:00:21]} d6 {[%emt 0:00:00]} 5. Nf3 {[%emt 0:00:36]} O-O {[%emt 0:00:00]} 6. Be2 {[%emt 0:01:17]} Bg4 {[%emt 0:00:00]} 7. O-O {[%emt 0:01:33]} Nfd7 {[%emt 0:00:05]} 8. Be3 {[%emt 0:05:32]} Nc6 {[%emt 0:00:23]} 9. Ne1 {[%emt 0:08:02]} Bxe2 {[%emt 0:00:50]} 10. Nxe2 {[%emt 0:00:10]} Na5 {[%emt 0:15:02]} 11. Rc1 {[%emt 0:06:40]} c5 {[%emt 0:00:08]} 12. Nd3 {[%emt 0:05:09]} Rc8 {[%emt 0:05:42]} 13. d5 {[%emt 0:01:44]} a6 {[%emt 0:05:35]} 14. Qa4 {[%emt 0:02:34]} b5 {[%emt 0:20:57]} 15. cxb5 {[%emt 0:01:31]} axb5 {[%emt 0:00:03]} 16. Qxb5 {[%emt 0:01:05]} Rb8 {[%emt 0:00:13]} 17. Qa4 {[%emt 0:00:10]} c4 {[%emt 0:18:31]} 18. Nb4 {[%emt 0:02:06]} Nc5 {[%emt 0:00:52]} 19. Bxc5 {[%emt 0:02:56]} dxc5 {[%emt 0:00:03]} 20. Nc6 Nxc6 {[%emt 0:00:30]} 21. dxc6 Rb4 {[%emt 0:00:30]} 22. Qa7 Qd6 {[%emt 0:00:30]} 23. Qa6 Bxb2 {[%emt 0:00:30]} 24. a3 Rbb8 {[%emt 0:00:30]} 25. Rfd1 Qc7 {[%emt 0:00:30]} 26. Rd7 Qc8 {[%emt 0:00:30]} 27. Qxc8 Rbxc8 {[%emt 0:00:30]} 28. Rxc4 Rxc6 {[%emt 0:00:30]} 29. a4 Rb8 {[%emt 0:00:30]} 30. g3 Rb4 {[%emt 0:00:30]} 31. Rxb4 cxb4 {[%emt 0:00:30]} 32. a5 Ra6 {[%emt 0:00:30]} 33. Rb7 Rxa5 {[%emt 0:00:30]} 34. Rxb4 Be5 {[%emt 0:00:30]} 35. f4 Bd6 {[%emt 0:00:30]} 36. Rc4 e5 {[%emt 0:00:30]} 37. f5 Be7 {[%emt 0:00:30]} 38. g4 Kg7 {[%emt 0:00:30]} 39. Kf2 Ra3 {[%emt 0:00:30]} 40. Rc3 Ra4 {[%emt 0:00:30]} 41. Kf3 h6 {[%emt 0:30:30]} 42. Rc6 Ra3+ {[%emt 0:00:30]} 43. Rc3 Ra2 {[%emt 0:00:30]} 44. Rc6 Ra3+ {[%emt 0:00:30]} 1/2-1/2

[Event "94th FRA-ch Open A 2019"]
[Site "Chartres"]
[Date "2019.08.20"]
[Round "4.2"]
[White "Burille, Matthieu"]
[Black "Mahieu, Luc"]
[Result "1-0"]
[ECO "B90"]
[WhiteElo "2174"]
[BlackElo "2084"]
[Annotator "NA"]
[PlyCount "65"]
[EventDate "2019.08.17"]
[EventType "swiss"]
[EventCountry "FRA"]
[SourceTitle "playchess.com"]
[Source "ChessBase"]
[SourceQuality "1"]
[TimeControl "40/5400+30:1800+30"]

1. e4 {[%emt 0:01:38]} c5 {[%emt 0:00:01]} 2. Nf3 {[%emt 0:00:08]} d6 {[%emt 0:00:09]} 3. d4 {[%emt 0:00:02]} cxd4 {[%emt 0:00:16]} 4. Nxd4 {[%emt 0:00:05]} Nf6 {[%emt 0:00:13]} 5. Nc3 {[%emt 0:00:03]} a6 {[%emt 0:00:09]} 6. h3 {[%emt 0:00:05]} e5 {[%emt 0:00:14]} 7. Nb3 {[%emt 0:00:04]} Be6 {[%emt 0:02:57]} 8. Be3 {[%emt 0:00:18]} Be7 {[%emt 0:02:22]} 9. g4 {[%emt 0:05:51]} d5 {[%emt 0:13:30]} 10. exd5 {[%emt 0:06:11]} Nxd5 {[%emt 0:00:09]} 11. Bg2 {[%emt 0:00:27]} Nxe3 {[%emt 0:03:08]} 12. Qxd8+ {[%emt 0:01:03]} Kxd8 {[%emt 0:04:21]} 13. fxe3 {[%emt 0:00:20]} Bh4+ {[%emt 0:01:07]} 14. Ke2 {[%emt 0:03:48]} Bc4+ {[%emt 0:03:56]} 15. Kf3 {[%emt 0:01:02]} Nc6 {[%emt 0:01:22]} 16. Nc5 {[%emt 0:01:49]} e4+ {[%emt 0:13:17]} 17. Kf4 {[%emt 0:03:38]} g5+ {[%emt 0:14:56]} 18. Kf5 {[%emt 0:03:53]} Re8 {[%emt 0:02:58]} 19. Kf6 {[%emt 0:38:03]} b6 {[%emt 0:04:33]} 20. Rad1+ {[%emt 0:15:11]} Kc7 {[%emt 0:01:43]} 21. Rd7+ {[%emt 0:10:53]} Kc8 {[%emt 0:00:12]} 22. Rd6 {[%emt 0:00:02]} Ne7 {[%emt 0:13:10]} 23. Nd7 {[%emt 0:04:57]} Ng8+ {[%emt 0:05:20]} 24. Kg7 {[%emt 0:00:16]} Kc7 {[%emt 0:02:36]} 25. Nxe4 {[%emt 0:01:34]} f5 {[%emt 0:01:42]} 26. Rc6+ {[%emt 0:01:02]} Kxd7 {[%emt 0:01:49]} 27. Nc5+ {[%emt 0:00:20]} bxc5 {[%emt 0:00:32]} 28. Rd1+ {[%emt 0:00:02]} Ke7 {[%emt 0:00:57]} 29. Rc7+ {[%emt 0:00:03]} Ke6 {[%emt 0:00:04]} 30. Rc6+ {[%emt 0:00:34]} Ke5 {[%emt 0:01:34]} 31. Rxc5+ {[%emt 0:00:12]} Ke6 {[%emt 0:00:00]} 32. gxf5+ {[%emt 0:00:34]} Ke7 {[%emt 0:00:51]} 33. Rc7# {[%emt 0:00:03]} 1-0